Cogmind - Beta 13 @@@ ROGUE MODE // 2024.04.02 @ 20:06:42 Player: Copyrite Result: Destroyed by Y-45 Defender with Heavy Assault Rifle Performance ------------- Evolutions (1) 500 Regions Visited (2) 400 Robots Destroyed (28) 140 Value Destroyed (588) 588 Prototype IDs (0) 0 Alien Tech Used (0) 0 Bonus (0) 0 TOTAL SCORE: 1628 Bonus ------- None Cogmind --------- Core Integrity 0/400 Matter 28/300 Energy 100/100 System Corruption 0% Temperature Cool (27) Movement Core (1350) Ox26 Location -9/Materials Parts ------- > --- POWER (1) -------- (None) > --- PROPULSION (4) --- (None) > --- UTILITY (2) ------ Huge Storage Unit > --- WEAPON (2) ------- (None) > --- INVENTORY (25) --- Light Ion Engine Huge Storage Unit Tractor Beam Beam Cannon Light Assault Rifle Peak State ------------ > --- POWER ------------ Ion Engine > --- PROPULSION ------- Light Treads Light Treads > --- UTILITY ---------- Small Storage Unit Improved Terrain Scanner > --- WEAPON ----------- Light Assault Rifle Grenade Launcher > --- INVENTORY -------- Ion Engine Light Ion Engine Light Treads Small Storage Unit Tractor Beam Beam Cannon [Rating: 9] Favorites ----------- Power Ion Engine Engine Ion Engine Propulsion Light Treads Treads Light Treads Utility Improved Terrain Scanner Device Improved Terrain Scanner Storage Huge Storage Unit Weapon Light Assault Rifle Ballistic Gun Light Assault Rifle Launcher Grenade Launcher Build | -11 -10 -9 ------- Run | Yrd Mat Mat Slots Evolved 2 | . . 2 Power . | . . . Propulsion 2 | . . 2 Utility . | . . . Weapon . | . . . Parts Attached 17 | 7 9 1 Power 3 | 1 2 . Engine 3 | 1 2 . Core . | . . . Reactor . | . . . Propulsion 3 | 2 1 . Treads 3 | 2 1 . Leg . | . . . Wheel . | . . . Hover . | . . . Flight . | . . . Utility 4 | 3 1 . Device 2 | 2 . . Storage 2 | 1 1 . Processor . | . . . Hackware . | . . . Protection . | . . . Artifact . | . . . Weapon 7 | 1 5 1 Energy Gun . | . . . Energy Cannon . | . . . Ballistic Gun 2 | 1 1 . Ballistic Cannon . | . . . Launcher 5 | . 4 1 Special Weapon . | . . . Impact Weapon . | . . . Slashing Weapon . | . . . Piercing Weapon . | . . . Special Melee Weapon . | . . . Unidentified Prototypes . | . . . Parts Lost 7 | . . 7 Power 1 | . . 1 Propulsion 2 | . . 2 Utility 1 | . . 1 Weapon 3 | . . 3 Highest Loss Streak 7 | . . 7 To Critical Strikes . | . . . Average Slot Usage (%) 92 | . 99 63 Engine 13 | . 14 9 Treads 26 | . 28 17 Device 12 | . 14 8 Storage 13 | . 14 11 Ballistic Gun 13 | . 14 8 Launcher 12 | . 12 8 Naked Turns . | . . . Heaviest Build 90 | 12 90 90 Greatest Support 40 | 40 40 40 Greatest Overweight (x) 26 | . 2 26 Average Overweight (x) 1 | . 1 2 Largest Inventory Capacity 25 | 8 25 25 Average Capacity 21 | 7 22 25 Most Carried 8 | 4 8 6 Average Carried 5 | 2 5 5 Final Capacity 25 | 8 25 25 Final Carried 6 | 4 6 5 Class Distribution -------------------- 100% | Mutant Dominant Class ---------------- Mutant | -10/Materials Mutant | -9/Materials Resources | -11 -10 -9 ----------- Run | Yrd Mat Mat Matter Collected 432 | 296 117 19 Remotely 96 | 96 . . Salvage Created 549 | 111 162 276 Parts 46 | 8 14 24 Haulers Intercepted . | . . . Recyclers Shooed . | . . . Parts Field Recycled . | . . . Retrieved Matter . | . . . Parts Self-Destructed . | . . . Prevented . | . . . Kills | -11 -10 -9 ------- Run | Yrd Mat Mat Combat Hostiles Destroyed 19 | . 9 10 Guns 3 | . 3 . AOE 16 | . 6 10 Classes Destroyed 7 | 3 3 1 Worker 3 | 2 1 . Builder 2 | . . 2 Tunneler 1 | 1 . . Recycler 2 | 1 . 1 Watcher 1 | . 1 . Swarmer 7 | . 3 4 Grunt 12 | . 6 6 Best Kill Streak 10 | 2 5 10 Combat Bots Only 7 | . 3 7 Max Kills in Single Turn 3 | 1 2 3 Gunslinging . | . . . Exploded 3 | . 2 3 Melee . | . . . Uniques/NPCs Destroyed . | . . . Combat | -11 -10 -9 -------- Run | Yrd Mat Mat Hostile Shots Fired 165 | . 45 120 Missed 50 | . 11 39 Damage Taken 1460 | . 362 1098 Core 445 | . 37 408 Absorbed by Shields . | . . . Core Remaining (%) 92 | 100 85 . Volleys Fired 76 | 26 36 14 Largest 2 | 1 2 1 Hottest 40 | 20 40 30 Shots Fired 78 | 26 38 14 Gun 47 | 26 21 . Cannon . | . . . Launcher 31 | . 17 14 Special . | . . . Kinetic 47 | 26 21 . Thermal . | . . . Explosive 31 | . 17 14 Electromagnetic . | . . . Robot Hit Streak 11 | 5 9 11 Robot Miss Streak 7 | 2 7 1 Penetration Max . | . . . Secondary Targets . | . . . Shots Hit Robots 39 | 18 17 4 Core Hits 49 | 6 19 24 Critical Kills . | . . . Critical Parts Destroyed . | . . . Critical Strikes . | . . . Melee Attacks . | . . . Impact . | . . . Slashing . | . . . Piercing . | . . . Sneak Attacks . | . . . Combat Hostiles . | . . . Follow-up Attacks . | . . . Damage Inflicted 1737 | 147 871 719 Guns 244 | 147 97 . Cannons . | . . . Explosions 1485 | . 766 719 Melee . | . . . Ramming 8 | . 8 . Kinetic 244 | 147 97 . Thermal . | . . . Explosive 1485 | . 766 719 Electromagnetic . | . . . Impact . | . . . Slashing . | . . . Piercing . | . . . Highest Corruption 4 | . 4 . Average Corruption 1 | . 1 . Corruption Purged . | . . . Corruption Blocked . | . . . Effects 3 | . 3 . Matter Fused 2 | . 2 . Energy Discharges 1 | . 1 . Overload Shots . | . . . Overflow Damage . | . . . Projectiles . | . . . Explosions . | . . . Melee . | . . . Knockbacks . | . . . Impact . | . . . Kinetic . | . . . Secondary . | . . . Self-Inflicted Damage 12 | . 12 . Shots 1 | . 1 . Rammed 2 | . 2 . Targets Rammed 2 | . 2 . Kicked . | . . . Crushed . | . . . Highest Temperature 46 | . 46 5 Average Temperature 17 | . 22 2 Received Heat Transfer 510 | . 141 369 Siege Activations . | . . . Robots Corrupted . | . . . Combat Hostiles . | . . . Parts Fried . | . . . Impact Corruptions . | . . . Robots Melted . | . . . Combat Hostiles . | . . . Parts Melted . | . . . Heat Transferred . | . . . Parts Sabotaged . | . . . Parts Stolen . | . . . Parts Stripped . | . . . Power Chain Reactions . | . . . Alert | -11 -10 -9 ------- Run | Yrd Mat Mat Peak Influence 331 | 20 294 331 Initial 13 | . 13 . Average 77 | 9 74 141 Maximum Alert Level 1 | . 1 1 Low Security (%) 92 | 100 96 65 Level 1 7 | . 3 34 Level 2 . | . . . Level 3 . | . . . Level 4 . | . . . Level 5 . | . . . High Security . | . . . Max Security . | . . . Squads Dispatched . | . . . Investigation . | . . . Extermination . | . . . Reinforcement . | . . . Assault . | . . . Garrison . | . . . Intercept . | . . . Searches Triggered . | . . . Construction Impeded . | . . . Haulers Reinforced . | . . . Active Scanning Responses . | . . . Cargo Convoy Interrupts . | . . . Stealth | -11 -10 -9 --------- Run | Yrd Mat Mat Distress Signals 2 | . 1 1 Communications Jammed . | . . . Distress Signals . | . . . Times Spotted 23 | . 10 13 Peak Tracking Total 7 | . 4 7 Tactical Retreats . | . . . Traps | -11 -10 -9 ------- Run | Yrd Mat Mat Traps Triggered 4 | . 4 . Indirectly . | . . . Trap Hack Attempts . | . . . Triggered . | . . . Disarmed . | . . . Reprogrammed . | . . . Reused . | . . . Traps Extracted . | . . . Installed . | . . . Triggered . | . . . Machines | -11 -10 -9 ---------- Run | Yrd Mat Mat Machines Disabled 1 | . . 1 Max in Single Turn 1 | . . 1 Machines Repaired . | . . . Machines Dismantled . | . . . Machines Sabotaged . | . . . Overloaded Fab Kills . | . . . Hacking | -11 -10 -9 --------- Run | Yrd Mat Mat Machines Accessed 3 | . 3 . Terminals 3 | . 3 . Fabricators . | . . . Repair Stations . | . . . Recycling Units . | . . . Scanalyzers . | . . . Garrison Access . | . . . Total Hacks 7 | . 7 . Successful 4 | . 4 . Failed 3 | . 3 . Catastrophic 1 | . 1 . Database Lockouts . | . . . Manual . | . . . Terminals 7 | . 7 . Fabricators . | . . . Repair Stations . | . . . Recycling Units . | . . . Scanalyzers . | . . . Garrison Access . | . . . Terminal Hacks 4 | . 4 . Record 1 | . 1 . Terminal Index 1 | . 1 . Hauler Manifests 1 | . 1 . Registered Components 1 | . 1 . Fabricator Hacks . | . . . Repair Station Hacks . | . . . Recycling Unit Hacks . | . . . Scanalyzer . | . . . Garrison Access Hacks . | . . . Unauthorized Hacks . | . . . Terminals . | . . . Fabricators . | . . . Repair Stations . | . . . Recycling Units . | . . . Scanalyzers . | . . . Garrison Access . | . . . Data Cores Recovered . | . . . Used . | . . . Hacking Detections 2 | . 2 . Full Trace Events 1 | . 1 . Feedback Events . | . . . Feedback Blocked . | . . . Robot Schematics Acquired . | . . . Robots Built . | . . . Authchips . | . . . Time . | . . . Total Robot Build Rating . | . . . Part Schematics Acquired . | . . . Parts Built . | . . . Authchips . | . . . Time . | . . . Total Part Build Rating . | . . . Parts Repaired . | . . . Time . | . . . Parts Recycled . | . . . Recycled Matter . | . . . Retrieved Matter . | . . . Retrieved Components . | . . . Parts Scanalyzed . | . . . Part Schematics Acquired . | . . . Parts Damaged . | . . . Bothacking | -11 -10 -9 ------------ Run | Yrd Mat Mat Used RIF Installer . | . . . Robots Hacked . | . . . Non-combat . | . . . Combat . | . . . Robot Hacks Applied . | . . . Relay Couplers Released . | . . . Fabnet Peak Effective % . | . . . Robots Rewired . | . . . Allies Hacked . | . . . Hacks Repelled . | . . . Allies | -11 -10 -9 -------- Run | Yrd Mat Mat Total Allies . | . . . Largest Group . | . . . Highest-Rated Group . | . . . Highest-Rated Ally . | . . . Total Orders . | . . . Ally Attacks . | . . . Total Damage . | . . . Kills . | . . . Allies Corrupted . | . . . Allies Melted . | . . . Intel | -11 -10 -9 ------- Run | Yrd Mat Mat Robot Analysis Total . | . . . Derelict Logs Recovered . | . . . Drone Launches . | . . . Drone Recoveries . | . . . Exploration | -11 -10 -9 ------------- Run | Yrd Mat Mat Turns Passed 1861 | 218 1349 294 Spaces Moved 593 | 94 430 69 Core 5 | 3 . 2 Treads 588 | 91 430 67 Legs . | . . . Wheels . | . . . Hover . | . . . Flight . | . . . Fastest Speed 50 | 50 160 320 Average Speed 278 | 156 291 359 Slowest Speed 1350 | 160 320 1350 Overloaded Moves . | . . . Propulsion Burnouts . | . . . Robots Hopped . | . . . Cave-ins Triggered . | . . . Exploration Rate (%) 31 | 6 81 8 Regions Visited 2 Branch Regions . Pre-discovered Areas . | . . . Known Exits Taken . | . . . Unknown Exits Taken 2 | 1 1 . Scrap Searched . | . . . Spaces Dug . | . . . Terrain Destroyed 171 | . 71 100 Melee . | . . . Projectile . | . . . AOE 171 | . 71 100 Terrain Rammed . | . . . Walls Destroyed . | . . . Machines Disabled . | . . . Actions | -11 -10 -9 --------- Run | Yrd Mat Mat Total 730 | 141 488 101 Wait 28 | 11 . 17 Move 591 | 93 429 69 Hop . | . . . Pick Up 8 | 4 4 . Fast Attach 8 | 6 2 . Attach 2 | . 1 1 Detach 2 | . 2 . Swap 7 | 1 6 . Drop 6 | . 6 . Fire 76 | 26 36 14 Melee . | . . . Ram . | . . . Kick . | . . . Crush 2 | . 2 . Escape Stasis . | . . . Rewire . | . . . Trap . | . . . Miscellaneous . | . . . Route ------- -11/Scrapyard -10/Materials (discovered 4 exits: [*Mat x3] / [*Min]) -9/Materials History --------- Turn | Location | Event 12 | -11/Scrapyard | Discovered new exit (range 14) 219 | -11/Scrapyard | Entered Materials 365 | -10/Materials | Build established: Mutant 424 | -10/Materials | Discovered new exit (range 16) 710 | -10/Materials | Discovered new exit (range 7) 1008 | -10/Materials | Discovered new exit (range 5) 1408 | -10/Materials | Discovered new exit (range 4) 1568 | -10/Materials | Entered another Materials area 1568 | -9/Materials | Evolved 2 slots: Propulsion x2 1783 | -9/Materials | Destroyed 7 combat bots 1833 | -9/Materials | Core integrity fell below 50% 1849 | -9/Materials | Lost 7 parts (1p2n1u3w) 1856 | -9/Materials | Core integrity fell below 20% 1862 | -9/Materials | Destroyed by Y-45 Defender with Heavy Assault Rifle Last Messages --------------- The unstable cave ceiling collapses. U-05 Engineer lays Concrete. U-05 Engineer builds a Wall. U-05 Engineer lays Concrete. Grenade Launcher destroyed. The unstable cave ceiling collapses. Lgt. Assault Rifle destroyed. [Achievement: Oops] Imp. Terrain Scanner destroyed. Lgt. Treads destroyed. Grenade Launcher destroyed. Critical hit (Burn: +37). The unstable cave ceiling collapses. Ion Engine destroyed. R-06 Scavenger collects Structural Scanner. The unstable cave ceiling collapses. Lgt. Treads destroyed. The unstable cave ceiling collapses. R-06 Scavenger collects Aluminum Leg. Critical hit (Burn: +37). Map ----- +----------------------------------------------------+ | ?????????????????????????????????????????????????? | | ?????????????????????????????????????????????????? | | ?????????????????????????????????????????????????? | | ?????????????????????????????????????????????????? | | ?????????????????????????????????????????????????? | | ?????????????????????????????????????????????????? | | ?????????????????????????????????????????????????? | | ???????????????? ????????????????????????????????? | | ?????????????????????????????????????????????????? | | ??????????????????????????#???#??????????????????? | | ?????????????????? ????#?????????????????????????? | | ??????????????###????????????????????????????????? | | ?????????????????#???????????????????????????????? | | ?????????????????????????????????????????????????? | | ?????????????????????????????????????????????????? | | ?????????????#??#?????????????#??????????????????? | | ??????????????#?????###???????????#??????????????? | | ??????????????????### #########? #??????????????? | | ?????????#????????# # # #??????????????? | | ?????????????################## ####+#?????????? | | ???? ????#???# ????????? | | ?#??????#????# ????????? | | ?????????#???# ????????? | | ?????????????####+# ## ###########???????????? | | ????????#??#?# # ## #???#??????????????? | | ????????????## """ # @ ####??????????????????? | | ?????#???????# """"" # w #??????#??#???????????? | | ????????#????# """"" # #?????#???#???????????? | | ?????????????# """"" #YY ##?#???????? ?????????? | | ?????????#?### """ # ###????????#??????????? | | ?????????##??# # ##??????? #???????????? | | ?????????????# # #??? ??? #???????????? | | ?????????????########## #?????? #???????????? | | ?????????????? ????? # ?#? # ???????? | | ???????#?#??#??????""" #? # ???????? | | ???????????#???? """ # * ##????????? | | ?????????????? ?! """ =% % [%=%" ??????? | | ?????????????????? """ r !* %= ??????? | | ?????????????????? """ [* =%= ??????? | | ??????????????? ??? # # [ #+???????? | | ????????????????? ? a ???????? | | ??????????????#????##### ### "???????? | | ???????? ??? ?????? ?? ##? ????????? | | ????????????????? ???? ##?? ???????????? | | ??????????????????? ? #??? ???????????? | | ??????????????????? !!#?? ?? ????????????? | | ??????????????????? !!#??????| ????????????? | | ?????????????????? #?????????????????????? | | ????????????????# ?????????????????????? | | ?????????????????? ?????????????????????? | +----------------------------------------------------+ Best States ------------- Heat Dissipation 28 Energy Generation 10 Energy Capacity 250 Matter Stores 300 Matter Capacity 300 Sight Range 16 Terrain Scan Range 16 Terrain Scan Density 10 Evasion (%) 40 Recoil Reduction 2 Item Schematics ----------------- None Robot Schematics ------------------ None Fabricated ------------ Nothing Alien Tech Used ----------------- None Achievements -------------- Oops Challenges ------------ None Game ------ Seed EncryptedTiamatStabilizer Manual? 0 Play Time 00:15:26 Cumulative 2.4 hours Start 2024.04.02 @ 19:52:53 End 2024.04.02 @ 20:06:42 Sessions 1 Manual Loads 0 Difficulty Rogue Special Mode None Game No. 5 Rogue 5 Adventurer 0 Explorer 0 Win Type - Total 0 Types 0/0/0/0/0/0/0/0/0 Lore% 1 Gallery% 6 Achievement% 4 Wizard Run 0 Options --------- Layout 1 ASCII 0 Keyboard 0 Movement Numpad Keybinds 0 Fullscreen 1 Font 32/SmallcapsGlow Map View 50x35 Zoom Use 0% Tactical HUD 0 Map Filters NONE Filters NONE Steam 1 RUN: 866258a1-c92a-4680-9571-b2573c0fa00f